bitfinex-derivatives/quotes_BTCF0:USTF0_20230702
["timestamp","ask_amount","ask_price","bid_price","bid_amount"]
[1688313989357,0.46126632,30537.0,30536.0,0.64124091]
[1688313990155,0.46126632,30537.0,30536.0,0.65415502]
[1688313990752,0.46126632,30537.0,30536.0,0.24776948]
[1688313990959,0.22008139,30537.0,30536.0,0.24776948]
[1688313991546,0.25716053,30537.0,30536.0,0.24776948]
[1688313991750,0.23893084,30537.0,30536.0,0.26741748]
[1688313991950,0.23893084,30537.0,30536.0,0.28044091]
[1688313991951,0.22008139,30537.0,30536.0,0.28044091]
[1688313992572,0.22008139,30537.0,30536.0,0.29335502]
[1688313992863,0.22008139,30537.0,30536.0,0.28044091]
[1688313993259,0.22008139,30537.0,30536.0,0.29335502]
[1688313993459,0.22008139,30537.0,30536.0,0.28044091]
[1688313997070,0.22008139,30537.0,30536.0,0.29335502]
[1688313998172,0.22008139,30537.0,30536.0,0.28044091]
[1688313998676,0.23831108,30537.0,30536.0,0.26741748]
[1688313998972,0.59911108,30537.0,30536.0,0.24776948]
[1688313999157,0.61796053,30537.0,30536.0,0.24776948]
[1688314001676,0.86596053,30537.0,30536.0,0.24776948]
[1688314001878,0.87256053,30537.0,30536.0,0.24767943]
[1688314002060,0.87256053,30537.0,30534.0,0.3006912]
[1688314002379,0.019649,30535.0,30534.0,0.3006912]
[1688314002574,0.46572547,30535.0,30534.0,0.5486912]
[1688314003075,0.50280461,30535.0,30534.0,0.5486912]
[1688314010782,0.86360461,30535.0,30534.0,0.5486912]
[1688314012679,0.61740461,30535.0,30534.0,0.5486912]
[1688314015783,0.61740461,30535.0,30534.0,0.54856231]
[1688314016576,0.25660461,30535.0,30534.0,0.54856231]
[1688314016777,0.61740461,30535.0,30534.0,0.54856231]
[1688314017290,0.59917492,30535.0,30534.0,0.54856231]
[1688314017589,0.61740461,30535.0,30534.0,0.54856231]
[1688314025489,0.91480461,30535.0,30529.0,0.330752]
[1688314025790,0.3608,30531.0,30530.0,0.3073]
[1688314025995,0.32594906,30530.0,30529.0,0.2473]
[1688314026190,0.51722847,30530.0,30529.0,0.2473]
[1688314026380,0.55430761,30530.0,30529.0,0.2473]
[1688314028090,0.30660761,30530.0,30529.0,0.267652]
[1688314028293,0.5476632,30530.0,30529.0,0.267652]
[1688314029093,0.5476632,30530.0,30529.0,0.577152]
[1688314030487,0.5476632,30530.0,30529.0,0.5575]
[1688314031801,0.5476632,30530.0,30529.0,0.55648]
[1688314032703,0.7956632,30530.0,30529.0,0.55648]
[1688314033701,1.05100745,30530.0,30529.0,0.55648]
[1688314034095,1.05100745,30530.0,30528.0,0.248]
[1688314034297,0.41991125,30529.0,30528.0,0.248]
[1688314035895,0.83038999,30529.0,30528.0,0.248]
[1688314036107,0.50463804,30529.0,30528.0,0.248]
[1688314037198,0.019654,30527.0,30526.0,0.00049133]
[1688314037404,0.019654,30527.0,30525.0,0.248]
[1688314037405,0.069654,30526.0,30525.0,0.248]
[1688314037597,0.43223411,30526.0,30525.0,0.248]
[1688314037797,0.46931325,30526.0,30525.0,0.248]
[1688314038403,0.46931325,30526.0,30522.0,0.24659138]
[1688314038604,0.86733504,30523.0,30522.0,0.24659138]
[1688314038905,1.00217115,30523.0,30522.0,0.24659138]
[1688314039106,1.03925029,30523.0,30522.0,0.24659138]
[1688314039411,0.71116295,30523.0,30522.0,0.24659138]
[1688314040309,0.97149799,30523.0,30522.0,0.24659138]
[1688314041507,0.93877621,30523.0,30522.0,0.24659138]
[1688314041716,0.93877621,30523.0,30522.0,0.00049138]
[1688314043113,0.71116295,30523.0,30522.0,0.00049138]
[1688314043305,0.9387264,30523.0,30522.0,0.00049138]
[1688314044116,0.71116295,30523.0,30522.0,0.00049138]
[1688314045199,0.93866344,30523.0,30522.0,0.00049138]
[1688314045400,0.69246344,30523.0,30522.0,0.24849138]
[1688314047328,0.46496295,30523.0,30522.0,0.24849138]
[1688314047627,0.97329799,30523.0,30522.0,0.00482812]
[1688314048010,1.0410918,30523.0,30522.0,0.00049138]
[1688314048623,1.0410918,30523.0,30522.0,0.00482817]
[1688314048823,0.97329799,30523.0,30522.0,0.00482817]
[1688314049217,0.71296295,30523.0,30522.0,0.00049138]
[1688314049921,0.94044241,30523.0,30522.0,0.00049138]
[1688314050122,0.94778666,30523.0,30522.0,0.24719138]
[1688314050426,0.92893721,30523.0,30522.0,0.25152845]
[1688314050827,0.92882387,30523.0,30522.0,0.25152845]
[1688314051125,0.94767332,30523.0,30522.0,0.25152845]
[1688314051322,0.72019386,30523.0,30522.0,0.25152845]
[1688314051529,0.46484961,30523.0,30522.0,0.25152845]
[1688314051728,0.69232907,30523.0,30522.0,0.25152845]
[1688314053431,0.46484961,30523.0,30522.0,0.25152845]
[1688314055323,0.4174218,30523.0,30522.0,0.25152845]
[1688314056532,0.71287444,30523.0,30522.0,0.00482845]
[1688314060636,0.71287444,30523.0,30522.0,0.00705043]
[1688314062632,0.71287444,30523.0,30522.0,0.25505043]
[1688314063227,0.4277953,30523.0,30522.0,0.27340743]
[1688314063432,0.57556981,30523.0,30522.0,0.27340743]
[1688314064133,0.57556981,30523.0,30522.0,0.27987181]
[1688314065137,0.08643613,30523.0,30522.0,0.27987181]
[1688314065332,0.10609213,30524.0,30523.0,0.274156]
[1688314065637,0.22747946,30526.0,30523.0,0.55291209]
[1688314065838,0.51617071,30527.0,30523.0,0.55291209]
[1688314065839,0.25583567,30527.0,30525.0,0.6081]
[1688314066147,1.02662859,30531.0,30526.0,0.89959154]
[1688314066444,0.22782859,30531.0,30530.0,0.265752]
[1688314066636,0.27526819,30531.0,30530.0,0.29168954]
[1688314067042,0.29491919,30531.0,30530.0,0.29168954]
[1688314067342,0.06402859,30532.0,30530.0,0.53798954]
[1688314067535,0.26082604,30534.0,30531.0,0.52173754]
[1688314067536,0.000491,30534.0,30531.0,0.52173754]
[1688314067738,0.000491,30534.0,30533.0,0.6075]
[1688314068031,0.000491,30534.0,30533.0,0.64017343]
[1688314068238,0.000491,30534.0,30533.0,0.65308754]
[1688314069235,0.27998204,30537.0,30534.0,0.02593754]
[1688314069236,0.019647,30537.0,30534.0,0.02593754]
[1688314069442,0.019647,30537.0,30536.0,0.6068]
[1688314069737,0.019647,30537.0,30536.0,0.626448]
[1688314069943,0.019647,30537.0,30536.0,0.65238554]
[1688314072435,0.019647,30537.0,30536.0,0.626448]
[1688314072837,0.03849645,30537.0,30536.0,0.626448]
[1688314073043,0.03849645,30537.0,30536.0,0.63936211]
[1688314073236,0.03849645,30537.0,30536.0,0.626448]
[1688314073638,0.03849645,30537.0,30536.0,0.63936211]
[1688314074548,0.019647,30537.0,30536.0,0.63936211]
[1688314076152,0.28649645,30537.0,30536.0,0.626448]
[1688314076552,0.30472614,30537.0,30536.0,0.380448]
[1688314076753,0.30472614,30537.0,30536.0,0.627148]
[1688314077253,0.28649645,30537.0,30536.0,0.627148]
[1688314077846,0.267647,30537.0,30536.0,0.64006211]
[1688314078048,0.267647,30537.0,30536.0,0.65308554]
[1688314078252,0.267647,30537.0,30536.0,0.64017143]
[1688314078856,0.28649645,30537.0,30536.0,0.627148]
[1688314079160,0.30472614,30537.0,30536.0,0.627148]
[1688314079454,0.30472614,30537.0,30536.0,0.266348]
[1688314079962,0.66552614,30537.0,30535.0,0.248]
[1688314080153,0.28447914,30536.0,30535.0,0.248]
[1688314080345,0.30412714,30536.0,30535.0,0.248]
[1688314080751,0.49930402,30536.0,30535.0,0.248]
[1688314081052,0.30412714,30536.0,30535.0,0.248]
[1688314081255,0.49934585,30536.0,30535.0,0.248]
[1688314082259,0.5028469,30536.0,30535.0,0.248]
[1688314083960,0.30762819,30536.0,30535.0,0.248]
[1688314084154,0.3550662,30536.0,30535.0,0.248]
[1688314084345,0.30762819,30536.0,30535.0,0.248]
[1688314084652,0.31412819,30536.0,30535.0,0.248]
[1688314085050,0.50951175,30536.0,30535.0,0.248]
[1688314087964,0.02314905,30536.0,30535.0,0.267649]
[1688314089151,0.0419985,30536.0,30535.0,0.267649]
[1688314089351,0.06022819,30536.0,30535.0,0.267649]
[1688314089950,0.0419985,30536.0,30535.0,0.267649]
[1688314091062,0.02314905,30536.0,30535.0,0.29358654]
[1688314092746,0.07754456,30536.0,30535.0,0.267649]
[1688314092953,0.09639401,30536.0,30535.0,0.267649]
[1688314093252,0.09639401,30536.0,30535.0,0.248]
[1688314093757,0.0419985,30536.0,30535.0,0.248]
[1688314094064,0.0419985,30536.0,30535.0,0.267649]
[1688314094454,0.0419985,30536.0,30535.0,0.28056311]
[1688314094850,0.0419985,30536.0,30535.0,0.267649]
[1688314096361,0.02314905,30536.0,30535.0,0.29358654]
[1688314097056,0.02314905,30536.0,30535.0,0.267649]
[1688314097261,0.0419985,30536.0,30535.0,0.267649]
[1688314097458,0.0419985,30536.0,30535.0,0.248]
[1688314098271,0.06022819,30536.0,30535.0,0.248]
[1688314099260,0.42102819,30536.0,30535.0,0.248]
[1688314099454,0.61641175,30536.0,30535.0,0.248]
[1688314099966,0.86441175,30536.0,30535.0,0.248]
[1688314100268,0.71296397,30536.0,30535.0,0.248]
[1688314100454,0.94070352,30536.0,30535.0,0.24786518]
[1688314100857,0.71296397,30536.0,30535.0,0.24786518]
[1688314101155,0.94070352,30536.0,30535.0,0.24786518]
[1688314103063,0.71296397,30536.0,30535.0,0.24786518]
[1688314103263,0.71296397,30536.0,30535.0,0.01291411]
[1688314103264,0.08593428,30536.0,30535.0,0.01291411]
[1688314103452,0.06708483,30536.0,30535.0,0.267649]
[1688314103865,0.29482438,30536.0,30535.0,0.267649]
[1688314104172,0.31367383,30536.0,30535.0,0.267649]
[1688314105472,0.08593428,30536.0,30535.0,0.267649]
[1688314106373,0.08593428,30536.0,30535.0,0.248]
[1688314106560,0.10416397,30536.0,30535.0,0.248]
[1688314107156,0.08593428,30536.0,30535.0,0.248]
[1688314107362,0.41403458,30536.0,30535.0,0.248]
[1688314107771,0.41992923,30536.0,30535.0,0.248]
[1688314111472,0.50463825,30536.0,30535.0,0.248]
[1688314111975,0.81374576,30536.0,30535.0,0.267649]
[1688314112365,0.81374576,30536.0,30535.0,0.248]
[1688314112569,0.58397545,30536.0,30535.0,0.248]
[1688314112766,0.25663825,30536.0,30535.0,0.248]
[1688314114377,0.50463825,30536.0,30535.0,0.248]
[1688314116866,0.51113825,30536.0,30535.0,0.248]
[1688314117063,0.51113825,30536.0,30535.0,0.24790845]
[1688314119874,0.50933825,30536.0,30535.0,0.24790845]
[1688314123770,0.50283825,30536.0,30535.0,0.24790845]
[1688314125576,0.21955911,30536.0,30535.0,0.26755745]
[1688314125973,0.21955911,30536.0,30535.0,0.28047156]
[1688314126977,0.21955911,30536.0,30535.0,0.26755745]
[1688314127774,0.23840856,30536.0,30535.0,0.26755745]
[1688314127984,0.25663825,30536.0,30535.0,0.26755745]
[1688314128776,0.25663825,30536.0,30535.0,0.24790845]
[1688314129484,0.25663825,30536.0,30535.0,0.24772736]
[1688314131288,0.23840856,30536.0,30535.0,0.24772736]
[1688314131585,0.25663825,30536.0,30535.0,0.24772736]
[1688314132890,0.23840856,30536.0,30535.0,0.24772736]
[1688314133281,0.25663825,30536.0,30535.0,0.24772736]
[1688314134786,0.61743825,30536.0,30535.0,0.24772736]
[1688314138986,0.05,30533.0,30529.0,0.02014327]
[1688314139188,0.61744025,30532.0,30529.0,0.02014327]
[1688314139384,0.19991111,30531.0,30529.0,0.02014327]
[1688314139584,0.019652,30530.0,30529.0,0.02014327]
[1688314139883,0.25664225,30530.0,30529.0,0.26814327]
[1688314140492,0.25664225,30530.0,30529.0,0.59114327]
[1688314141193,0.25664225,30530.0,30529.0,0.57149127]
[1688314141577,0.50464225,30530.0,30529.0,0.57140405]
[1688314141992,0.50464225,30530.0,30529.0,0.59789621]
[1688314142195,0.50464225,30530.0,30529.0,0.57140405]
[1688314142684,0.25664225,30530.0,30529.0,0.57140405]
[1688314146386,0.25664225,30530.0,30529.0,0.24840405]
[1688314146789,0.50464225,30530.0,30529.0,0.24710405]
[1688314149891,0.50464225,30530.0,30529.0,0.00040405]
[1688314150297,0.53036413,30530.0,30529.0,0.00040405]
[1688314153693,0.50464225,30530.0,30529.0,0.00040405]
[1688314153894,0.50464225,30530.0,30529.0,0.02005605]
[1688314157090,0.50464225,30530.0,30529.0,0.00040405]
[1688314160100,0.83187122,30530.0,30529.0,0.00040405]
[1688314160598,0.50464225,30530.0,30529.0,0.00040405]
[1688314161400,0.83186813,30530.0,30529.0,0.00040405]
[1688314162704,0.50464225,30530.0,30529.0,0.24840405]
[1688314162904,0.83186222,30530.0,30529.0,0.24840405]
[1688314165798,0.50464225,30530.0,30529.0,0.24840405]
[1688314166897,0.50464225,30530.0,30529.0,0.00040405]
[1688314167094,0.50464225,30530.0,30526.0,0.2461]
[1688314167095,0.05,30528.0,30526.0,0.2461]
[1688314167401,0.70950154,30527.0,30526.0,0.2461]
[1688314167705,0.74658068,30527.0,30526.0,0.2461]
[1688314169205,0.41933523,30527.0,30526.0,0.2461]
[1688314169504,0.74658068,30527.0,30526.0,0.2461]
[1688314169703,0.83131005,30527.0,30526.0,0.2461]
[1688314171108,0.83131005,30527.0,30526.0,0.25006538]
[1688314172093,0.83112415,30527.0,30526.0,0.25006538]
[1688314172396,0.74639478,30527.0,30526.0,0.25006538]
[1688314172600,0.74639478,30527.0,30526.0,0.25066538]
[1688314173715,0.83112325,30527.0,30526.0,0.24996538]
[1688314174906,0.83112325,30527.0,30526.0,0.24972538]
[1688314175111,0.74639478,30527.0,30526.0,0.24972538]
[1688314175305,0.83112389,30527.0,30526.0,0.24972538]
[1688314176411,0.50387844,30527.0,30526.0,0.24972538]
[1688314177113,0.53061045,30527.0,30526.0,0.24972538]
[1688314179811,0.28321045,30527.0,30526.0,0.24972538]
[1688314180018,0.83111614,30527.0,30526.0,0.24972538]
[1688314180610,0.50387844,30527.0,30526.0,0.24972538]
[1688314180811,0.831114,30527.0,30526.0,0.24972538]
[1688314181115,0.50387844,30527.0,30526.0,0.24972538]
[1688314182617,0.50387844,30527.0,30526.0,0.00372538]
[1688314183515,0.50447844,30527.0,30526.0,0.25172538]
[1688314186905,0.50447844,30527.0,30526.0,0.00372538]
[1688314187312,0.50447844,30527.0,30523.0,0.57399138]
[1688314187507,0.248,30524.0,30523.0,0.57399138]
[1688314187714,0.38267219,30524.0,30523.0,0.57399138]
[1688314188323,0.40152164,30524.0,30523.0,0.59364738]
[1688314188823,0.41975133,30524.0,30523.0,0.59364738]
[1688314189826,0.40152164,30524.0,30523.0,0.59364738]
[1688314190122,0.41975133,30524.0,30523.0,0.59364738]
[1688314190923,0.40152164,30524.0,30523.0,0.59364738]
[1688314191124,0.41975133,30524.0,30523.0,0.59364738]
[1688314192629,0.15352164,30524.0,30523.0,0.59364738]
[1688314193127,0.44816354,30524.0,30523.0,0.59364738]
[1688314193330,0.46639323,30524.0,30523.0,0.59364738]
[1688314194930,0.44816354,30524.0,30523.0,0.59364738]
[1688314195129,0.46639323,30524.0,30523.0,0.59364738]
[1688314195626,0.32051409,30524.0,30523.0,0.84814738]
[1688314195930,0.32051409,30524.0,30523.0,1.20894738]
[1688314196131,0.02587219,30524.0,30523.0,1.20894738]
[1688314196328,0.26188095,30524.0,30523.0,1.23488492]
[1688314197131,0.2946419,30525.0,30523.0,1.23488492]
[1688314197325,0.26189331,30524.0,30523.0,0.96094738]
[1688314197534,0.10549331,30524.0,30523.0,1.20894738]
[1688314198031,0.2946419,30525.0,30523.0,1.23488492]
[1688314198219,0.2946419,30525.0,30524.0,0.267656]
[1688314198625,0.2946419,30525.0,30524.0,0.29359354]
[1688314198822,0.00049142,30527.0,30524.0,0.54159354]
[1688314199030,0.019652,30530.0,30526.0,0.8566]
[1688314199230,0.019652,30530.0,30529.0,0.8555]
[1688314199432,0.108953,30532.0,30529.0,0.875152]
[1688314199627,0.108953,30532.0,30531.0,0.248]
[1688314199932,0.19366623,30532.0,30531.0,0.29358854]
[1688314200630,0.26143554,30532.0,30531.0,0.29358854]
[1688314201330,0.15248254,30532.0,30531.0,0.29358854]
[1688314201633,0.06776931,30532.0,30531.0,0.29358854]
[1688314202026,0.06776931,30532.0,30531.0,0.62108854]
[1688314205540,0.08741931,30532.0,30531.0,0.62108854]
[1688314206121,0.09237084,30532.0,30531.0,0.64734868]
[1688314207832,0.31890461,30532.0,30531.0,0.64734868]
[1688314208227,0.38667392,30532.0,30531.0,0.64734868]
[1688314208630,0.09237084,30532.0,30531.0,0.64734868]
[1688314211024,0.26645687,30532.0,30531.0,0.64734868]
[1688314211432,0.33422035,30532.0,30531.0,0.64734868]
[1688314211630,0.3342204,30532.0,30531.0,0.64734868]
[1688314211835,0.33422091,30532.0,30531.0,0.64734868]
[1688314212431,0.26645687,30532.0,30531.0,0.64734868]
[1688314212631,0.26645687,30532.0,30531.0,0.89534868]
[1688314213941,0.00495153,30532.0,30531.0,0.89534868]
[1688314214132,0.23271115,30532.0,30531.0,0.86941114]
[1688314214444,0.11800376,30537.0,30531.0,0.86941114]
[1688314214645,0.43195284,30539.0,30536.0,0.6068]
[1688314214834,0.06775579,30538.0,30537.0,0.36428454]
[1688314215143,0.0737799,30538.0,30537.0,0.586347]
[1688314215541,0.0737799,30538.0,30537.0,0.61228454]
[1688314216444,0.00602411,30538.0,30537.0,0.61228454]
[1688314216829,0.07378259,30538.0,30537.0,0.61228454]
[1688314217446,0.00602411,30538.0,30537.0,0.61228454]
[1688314219831,0.00602411,30538.0,30537.0,0.63846102]
[1688314222849,0.02567111,30538.0,30537.0,0.63846102]
[1688314224644,0.00602411,30538.0,30537.0,0.63846102]
[1688314224835,0.05,30540.0,30537.0,0.63846102]
[1688314225040,0.05,30540.0,30539.0,0.6088]
[1688314225238,0.05,30540.0,30539.0,0.628446]
[1688314225447,0.069645,30540.0,30539.0,0.628446]
[1688314225642,0.069645,30540.0,30539.0,0.65438354]
[1688314228640,0.07696956,30540.0,30539.0,0.29358354]
[1688314230247,0.07696956,30540.0,30539.0,0.28056011]
[1688314231239,0.07696956,30540.0,30539.0,0.29358354]
[1688314231857,0.07777376,30540.0,30539.0,0.29358354]
[1688314237458,0.11800376,30543.0,30541.0,0.2478]
[1688314237662,0.3222,30545.0,30542.0,0.65438154]
[1688314237960,0.371306,30545.0,30544.0,0.266343]
[1688314238155,0.371306,30545.0,30544.0,0.27936643]
[1688314238749,0.371306,30545.0,30544.0,0.29228054]
[1688314238950,0.37201932,30545.0,30544.0,0.29228054]
[1688314239352,0.37201932,30545.0,30544.0,0.27936643]
[1688314239561,0.37201932,30545.0,30544.0,0.266343]
[1688314240149,0.39086877,30545.0,30544.0,0.266343]
[1688314241057,0.37201932,30545.0,30544.0,0.266343]
[1688314241956,0.73794905,30545.0,30544.0,0.266343]
[1688314242554,0.67020014,30545.0,30544.0,0.266343]
[1688314242757,0.40909846,30545.0,30544.0,0.266343]
[1688314243156,0.73794943,30545.0,30544.0,0.266343]
[1688314245263,0.7429386,30545.0,30544.0,0.266343]
[1688314246061,0.72470891,30545.0,30544.0,0.266343]
[1688314247056,0.46360723,30545.0,30544.0,0.266343]
[1688314247653,0.72494991,30545.0,30544.0,0.266343]
[1688314247859,0.74317962,30545.0,30544.0,0.266343]
[1688314248060,0.48183692,30545.0,30544.0,0.266343]
[1688314248254,0.72495,30545.0,30544.0,0.266343]
[1688314249160,0.48183692,30545.0,30544.0,0.266343]
[1688314250469,0.46360723,30545.0,30544.0,0.266343]
[1688314251173,0.77614,30545.0,30544.0,0.266283]
[1688314254681,0.48183692,30545.0,30544.0,0.266283]
[1688314255875,0.46298747,30545.0,30544.0,0.266283]
[1688314256370,0.79000041,30545.0,30544.0,0.266283]
[1688314256680,0.80884986,30545.0,30544.0,0.266283]
[1688314257058,0.89353584,30545.0,30544.0,0.266283]
[1688314257266,1.17472333,30545.0,30544.0,0.13784898]
[1688314257466,1.17472333,30545.0,30544.0,0.15749198]
[1688314258873,1.18122333,30545.0,30544.0,0.13784898]
[1688314259678,1.18122333,30545.0,30544.0,0.15749198]
[1688314261489,0.93382333,30545.0,30544.0,0.15749198]
[1688314261879,0.93382333,30545.0,30535.0,0.049121]
[1688314261880,0.05,30537.0,30535.0,0.049121]
[1688314262078,0.019649,30535.0,30533.0,0.019648]
[1688314262290,0.019649,30535.0,30534.0,0.248]
[1688314262483,0.4188792,30535.0,30534.0,0.248]
[1688314262884,0.41949989,30535.0,30534.0,0.248]
[1688314263996,0.42599989,30535.0,30534.0,0.248]
[1688314264385,0.13161153,30535.0,30534.0,0.248]
[1688314264889,0.15161153,30535.0,30534.0,0.248]
[1688314265089,0.17061153,30535.0,30534.0,0.248]
[1688314265687,0.16411153,30535.0,30534.0,0.248]
[1688314266900,0.45829965,30535.0,30534.0,0.248]
[1688314267583,0.16411153,30535.0,30534.0,0.248]
[1688314268391,0.45829344,30535.0,30534.0,0.248]
[1688314268692,0.45829344,30535.0,30534.0,0.2468]
[1688314270297,0.45829344,30535.0,30534.0,0.2473]
[1688314272096,0.48464937,30535.0,30534.0,0.2473]
[1688314272599,0.48464937,30535.0,30534.0,0.248]
[1688314273700,0.84544937,30535.0,30534.0,0.248]
[1688314273893,0.84482868,30535.0,30534.0,0.248]
[1688314274506,0.55064677,30535.0,30534.0,0.248]
[1688314279913,0.53164677,30535.0,30534.0,0.248]
[1688314280209,0.51164677,30535.0,30534.0,0.248]
[1688314280508,0.44388407,30535.0,30534.0,0.248]
[1688314282714,0.69168407,30535.0,30534.0,0.248]
[1688314284011,0.67345438,30535.0,30534.0,0.248]
[1688314284708,0.69168407,30535.0,30534.0,0.248]
[1688314285709,0.65460493,30535.0,30534.0,0.248]
[1688314286017,0.40680493,30535.0,30534.0,0.248]
[1688314286311,0.380449,30535.0,30534.0,0.5635]
[1688314287514,0.019649,30535.0,30534.0,0.5635]
[1688314288316,0.019649,30535.0,30534.0,0.56344]
[1688314289905,0.019649,30535.0,30534.0,0.57635411]
[1688314290106,0.019649,30535.0,30534.0,0.56344]
[1688314290411,0.019649,30535.0,30534.0,0.58309]
[1688314290610,0.019649,30535.0,30534.0,0.95680411]
[1688314290811,0.019649,30535.0,30534.0,0.96982754]
[1688314293118,0.019649,30535.0,30534.0,0.60902754]
[1688314293823,0.019649,30535.0,30534.0,0.59600411]
[1688314294318,0.03849845,30535.0,30534.0,0.59600411]
[1688314295619,0.03849845,30535.0,30534.0,0.58309]
[1688314296520,0.03849845,30535.0,30534.0,0.6091236]
[1688314298506,0.10626379,30535.0,30534.0,0.6091236]
[1688314300724,0.08741434,30535.0,30534.0,0.62203771]
[1688314301125,0.08741434,30535.0,30534.0,0.63506114]
[1688314302624,0.38159625,30535.0,30534.0,0.63506114]
[1688314303731,0.08741434,30535.0,30534.0,0.63506114]
[1688314304417,0.38159625,30535.0,30534.0,0.63506114]
[1688314306419,0.38159625,30535.0,30534.0,0.99586114]
[1688314306618,0.36194725,30535.0,30534.0,0.99586114]
[1688314306917,0.32709818,30537.0,30534.0,0.99586114]
[1688314307124,0.00049073,30538.0,30536.0,0.6088]
[1688314307319,0.00049073,30538.0,30537.0,0.265748]
[1688314307721,0.00049073,30538.0,30537.0,0.29168554]
[1688314308835,0.02013873,30538.0,30537.0,0.29168554]
[1688314312025,0.08789271,30538.0,30537.0,0.29168554]
[1688314312527,0.08789271,30538.0,30537.0,0.27866211]
[1688314312832,0.08789271,30538.0,30537.0,0.29168554]
[1688314316030,0.31456283,30538.0,30537.0,0.29168554]
[1688314316229,0.38231681,30538.0,30537.0,0.29168554]
[1688314321537,0.36266881,30538.0,30537.0,0.29168554]
[1688314321735,0.06824471,30538.0,30537.0,0.29168554]
[1688314323032,0.36266881,30538.0,30537.0,0.65248554]
[1688314323235,0.06824471,30538.0,30537.0,0.65248554]
[1688314324344,0.38231681,30538.0,30537.0,0.65248554]
[1688314324737,0.38231681,30538.0,30537.0,0.63957143]
[1688314325423,0.38231681,30538.0,30537.0,0.65248554]
[1688314326032,0.38231681,30538.0,30537.0,0.63957143]
[1688314326535,0.38231681,30538.0,30537.0,0.65248554]
[1688314326734,0.38231681,30538.0,30537.0,0.63957143]
[1688314327535,0.38231681,30538.0,30537.0,0.65248554]
[1688314327840,0.38231681,30538.0,30537.0,0.63957143]
[1688314328040,0.08789271,30538.0,30537.0,0.63957143]
[1688314328243,0.31451929,30538.0,30537.0,0.65248554]
[1688314328438,0.38227327,30538.0,30537.0,0.65248554]
[1688314334844,0.36262527,30538.0,30537.0,0.65248554]
[1688314335743,0.38227327,30538.0,30537.0,0.65248554]
[1688314337632,0.38227327,30538.0,30537.0,0.29168554]
[1688314337837,0.38227327,30538.0,30537.0,0.65248554]
[1688314338039,0.08789271,30538.0,30537.0,0.65248554]
[1688314345947,0.08789271,30538.0,30537.0,0.29168554]
[1688314346446,0.43384034,30538.0,30537.0,0.265748]
[1688314346845,0.45207003,30538.0,30537.0,0.265748]
[1688314348156,0.41499089,30538.0,30537.0,0.265748]
[1688314348452,0.4996867,30538.0,30537.0,0.265748]
[1688314348655,0.17258852,30538.0,30537.0,0.265748]
[1688314349051,0.20966766,30538.0,30537.0,0.265748]
[1688314349556,0.17258852,30538.0,30537.0,0.265748]
[1688314349856,0.19081821,30538.0,30537.0,0.2461]
[1688314350348,0.20966766,30538.0,30537.0,0.2461]
[1688314351255,0.17258852,30538.0,30537.0,0.265748]
[1688314352763,0.17258852,30538.0,30537.0,0.27877143]
[1688314355970,0.19081821,30538.0,30537.0,0.265748]
[1688314356161,0.19143797,30538.0,30537.0,0.265748]
[1688314356672,0.17258852,30538.0,30537.0,0.265748]
[1688314358172,0.19081821,30538.0,30537.0,0.265748]
[1688314358473,0.17258852,30538.0,30537.0,0.265748]
[1688314358673,0.20966766,30538.0,30537.0,0.265748]
[1688314358875,0.20966766,30538.0,30537.0,0.2461]
[1688314362378,0.21616766,30538.0,30537.0,0.2461]
[1688314368383,0.19731821,30538.0,30537.0,0.265748]
[1688314368587,0.17908852,30538.0,30537.0,0.265748]
[1688314368973,0.20966766,30538.0,30537.0,0.265748]
[1688314369779,0.17258852,30538.0,30537.0,0.27877143]
[1688314370779,0.19143797,30538.0,30537.0,0.265748]
[1688314370981,0.20966766,30538.0,30537.0,0.265748]
[1688314371181,0.19143797,30538.0,30537.0,0.265748]
[1688314372792,0.20966766,30538.0,30537.0,0.265748]
[1688314373095,0.19143797,30538.0,30537.0,0.265748]
[1688314374692,0.17258852,30538.0,30537.0,0.27877143]
[1688314375193,0.17258852,30538.0,30537.0,0.29168554]
[1688314375889,0.17258852,30538.0,30537.0,0.265748]
[1688314377287,0.19143797,30538.0,30537.0,0.265748]
[1688314377897,0.17258852,30538.0,30537.0,0.27866211]
[1688314378194,0.17258852,30538.0,30537.0,0.265748]
[1688314378584,0.17258852,30538.0,30537.0,0.27877143]
[1688314378991,0.34767272,30538.0,30537.0,0.29168554]
[1688314379291,0.3957787,30538.0,30537.0,0.29168554]
[1688314379493,0.04912,30541.0,30538.0,0.02593754]
[1688314379684,0.04912,30541.0,30540.0,0.627746]
[1688314379884,0.1338069,30541.0,30540.0,0.627746]
[1688314380296,0.1338069,30541.0,30540.0,0.97448354]
[1688314380484,0.13764976,30542.0,30541.0,0.2463]
[1688314380687,0.10433151,30542.0,30541.0,0.52023754]
[1688314380896,0.10433151,30542.0,30541.0,0.53988354]
[1688314381091,0.10368551,30542.0,30541.0,0.53988354]
[1688314381287,0.12368551,30542.0,30541.0,0.53988354]
[1688314383200,0.14333051,30542.0,30541.0,0.53988354]
[1688314383394,0.12333051,30542.0,30541.0,0.53988354]
[1688314383587,0.10433051,30542.0,30541.0,0.53988354]
[1688314387390,0.10433051,30542.0,30541.0,0.28066943]
[1688314387391,0.10433365,30542.0,30541.0,0.28066943]
[1688314387590,0.10433365,30542.0,30541.0,0.267646]
[1688314388495,0.10433365,30542.0,30541.0,0.28056011]
[1688314388993,0.10433365,30542.0,30541.0,0.29358354]
[1688314390098,0.10433365,30542.0,30541.0,0.28066943]
[1688314390901,0.10433365,30542.0,30541.0,0.29358354]
[1688314392097,0.10433365,30542.0,30541.0,0.31976768]
[1688314394303,0.1231831,30542.0,30541.0,0.248]
[1688314395100,0.1431831,30542.0,30541.0,0.248]
[1688314395302,0.16141279,30542.0,30541.0,0.248]
[1688314395501,0.18041279,30542.0,30541.0,0.248]
[1688314395886,0.42811279,30542.0,30541.0,0.248]
[1688314397607,0.43471279,30542.0,30541.0,0.248]
[1688314398898,0.79551279,30542.0,30541.0,0.248]
[1688314401202,0.75843365,30542.0,30541.0,0.26102343]
[1688314401599,0.75843365,30542.0,30541.0,0.28066943]
[1688314401995,0.7706831,30542.0,30541.0,0.267646]
[1688314402494,0.39103365,30542.0,30541.0,0.28066943]
[1688314402701,0.14333365,30542.0,30541.0,0.28066943]
[1688314403100,0.14333365,30542.0,30541.0,0.29358354]
[1688314403495,0.12333365,30542.0,30541.0,0.29358354]
[1688314404004,0.10433365,30542.0,30541.0,0.29358354]
[1688314405002,0.10433365,30542.0,30541.0,0.28066943]
[1688314406304,0.12256334,30542.0,30541.0,0.267646]
[1688314406506,0.48336334,30542.0,30541.0,0.267646]
[1688314406804,0.50221279,30542.0,30541.0,0.267646]